[Event "Vener-dì-Lampo"]
[Site "Chess.com"]
[Date "2020.05.29"]
[Round "2"]
[White "fisherpez"]
[Black "markk000"]
[Result "1-0"]
[WhiteElo "1720"]
[BlackElo "1572"]
[TimeControl "300+2"]
[EndTime "12:27:20 PDT"]
[Termination "fisherpez ha vinto per scaccomatto"]

1. e3 {[%clk 0:05:01.9]} 1... d5 {[%clk 0:04:52.8]} 2. b3 {[%clk 0:05:01.9]}
2... Nc6 {[%clk 0:04:53.1]} 3. Bb5 {[%clk 0:05:02.1]} 3... Nf6 {[%clk
0:04:47.9]} 4. Bb2 {[%clk 0:05:01.8]} 4... e6 {[%clk 0:04:47.8]} 5. Nf3 {[%clk
0:05:02.7]} 5... Bd6 {[%clk 0:04:47.6]} 6. Nc3 {[%clk 0:04:56.5]} 6... Bd7
{[%clk 0:04:47.9]} 7. Be2 {[%clk 0:04:55.7]} 7... O-O {[%clk 0:04:48.3]} 8. O-O
{[%clk 0:04:56.6]} 8... e5 {[%clk 0:04:24.7]} 9. h3 {[%clk 0:04:53.9]} 9... e4
{[%clk 0:04:18.8]} 10. Nh2 {[%clk 0:04:52]} 10... Qe7 {[%clk 0:04:18]} 11. Ng4
{[%clk 0:04:45.8]} 11... Bxg4 {[%clk 0:04:06.3]} 12. Bxg4 {[%clk 0:04:46.3]}
12... Nxg4 {[%clk 0:04:07.2]} 13. Qxg4 {[%clk 0:04:44.5]} 13... Qe5 {[%clk
0:03:59.8]} 14. g3 {[%clk 0:04:41.3]} 14... f5 {[%clk 0:04:00.1]} 15. Qg5 {[%clk
0:04:34.4]} 15... Qe6 {[%clk 0:03:57.7]} 16. Nxd5 {[%clk 0:04:24.8]} 16... Be5
{[%clk 0:03:18.9]} 17. Nxc7 {[%clk 0:03:59.4]} 17... Qd6 {[%clk 0:03:00.5]} 18.
Bxe5 {[%clk 0:03:52.4]} 18... Qxe5 {[%clk 0:02:59.7]} 19. Qf4 {[%clk 0:03:50.8]}
19... Qxf4 {[%clk 0:02:57.1]} 20. exf4 {[%clk 0:03:42.6]} 20... Rac8 {[%clk
0:02:52.3]} 21. Nb5 {[%clk 0:03:42.4]} 21... a6 {[%clk 0:02:52.5]} 22. Na3
{[%clk 0:03:39.2]} 22... Nd4 {[%clk 0:02:52.5]} 23. c3 {[%clk 0:03:35.4]} 23...
Nf3+ {[%clk 0:02:53]} 24. Kg2 {[%clk 0:03:35.6]} 24... Rf6 {[%clk 0:02:53.5]}
25. Rfd1 {[%clk 0:03:24.9]} 25... Rg6 {[%clk 0:02:54]} 26. Kf1 {[%clk
0:03:19.2]} 26... Rh6 {[%clk 0:02:50.3]} 27. h4 {[%clk 0:03:19.4]} 27... Rd6
{[%clk 0:02:47.4]} 28. Nc4 {[%clk 0:03:19.3]} 28... Rdd8 {[%clk 0:02:42]} 29.
Ke2 {[%clk 0:02:59.8]} 29... b5 {[%clk 0:02:41]} 30. Na5 {[%clk 0:02:47.2]}
30... Rd3 {[%clk 0:02:24.6]} 31. b4 {[%clk 0:02:40.7]} 31... Rcd8 {[%clk
0:02:23.7]} 32. Nb3 {[%clk 0:02:39.9]} 32... g6 {[%clk 0:02:12.9]} 33. a4 {[%clk
0:02:40.1]} 33... R8d7 {[%clk 0:01:34]} 34. axb5 {[%clk 0:02:40.4]} 34... axb5
{[%clk 0:01:31.5]} 35. Ra5 {[%clk 0:02:38.9]} 35... R7d5 {[%clk 0:01:28.1]} 36.
Ra8+ {[%clk 0:02:33.1]} 36... Kg7 {[%clk 0:01:28.3]} 37. Rc8 {[%clk 0:02:34.3]}
37... Kf6 {[%clk 0:00:39.2]} 38. Rc6+ {[%clk 0:02:33.1]} 38... Kg7 {[%clk
0:00:39.4]} 39. Rc7+ {[%clk 0:02:33.6]} 39... Kg8 {[%clk 0:00:40]} 40. Rc5
{[%clk 0:02:34.5]} 40... Kf7 {[%clk 0:00:25.4]} 41. Rc7+ {[%clk 0:02:31.5]}
41... Ke6 {[%clk 0:00:24.9]} 42. Rc6+ {[%clk 0:02:32.6]} 42... Kd7 {[%clk
0:00:25.1]} 43. Rc5 {[%clk 0:02:33.7]} 43... Ke7 {[%clk 0:00:20.7]} 44. Rxd5
{[%clk 0:02:34.9]} 44... Rxd5 {[%clk 0:00:21.2]} 45. Nc5 {[%clk 0:02:36.2]}
45... Kd6 {[%clk 0:00:18.5]} 46. Nb3 {[%clk 0:02:36.4]} 46... Ke6 {[%clk
0:00:18.4]} 47. Ra1 {[%clk 0:02:36.4]} 47... Rd6 {[%clk 0:00:14]} 48. Ra5 {[%clk
0:02:36.6]} 48... Rb6 {[%clk 0:00:13.8]} 49. Nc5+ {[%clk 0:02:32.4]} 49... Kd6
{[%clk 0:00:14.5]} 50. Ra6 {[%clk 0:02:32.8]} 50... Rxa6 {[%clk 0:00:15]} 51.
Nxa6 {[%clk 0:02:33.8]} 51... Ng1+ {[%clk 0:00:16.9]} 52. Ke3 {[%clk 0:02:31.7]}
52... Nf3 {[%clk 0:00:18.2]} 53. d3 {[%clk 0:02:32.5]} 53... Kd5 {[%clk
0:00:18.4]} 54. Nc7+ {[%clk 0:02:27.6]} 54... Kc6 {[%clk 0:00:18.4]} 55. Ne6
{[%clk 0:02:26.3]} 55... Kd5 {[%clk 0:00:19.4]} 56. Nf8 {[%clk 0:02:25.6]} 56...
Kc6 {[%clk 0:00:07.4]} 57. dxe4 {[%clk 0:02:23.3]} 57... fxe4 {[%clk 0:00:06.9]}
58. Nxh7 {[%clk 0:02:24.5]} 58... Kd5 {[%clk 0:00:07.1]} 59. Nf6+ {[%clk
0:02:25.6]} 59... Kc4 {[%clk 0:00:07.3]} 60. Nxe4 {[%clk 0:02:26.7]} 60... Ng1
{[%clk 0:00:08.2]} 61. Nd6+ {[%clk 0:02:24.9]} 61... Kxc3 {[%clk 0:00:08.8]} 62.
Nxb5+ {[%clk 0:02:26.1]} 62... Kxb4 {[%clk 0:00:10]} 63. Nd6 {[%clk 0:02:27.4]}
63... Nh3 {[%clk 0:00:11]} 64. Nf7 {[%clk 0:02:25.9]} 64... Kc5 {[%clk
0:00:12.2]} 65. Ne5 {[%clk 0:02:26.6]} 65... Kd6 {[%clk 0:00:13.3]} 66. Nxg6
{[%clk 0:02:27.4]} 66... Ke6 {[%clk 0:00:15.2]} 67. Ne5 {[%clk 0:02:27.9]} 67...
Kf6 {[%clk 0:00:16.6]} 68. Kf3 {[%clk 0:02:28.9]} 68... Kg7 {[%clk 0:00:17.6]}
69. Kg4 {[%clk 0:02:30]} 69... Nxf2+ {[%clk 0:00:18]} 70. Kg5 {[%clk 0:02:29.4]}
70... Ne4+ {[%clk 0:00:19.3]} 71. Kg4 {[%clk 0:02:29]} 71... Kf6 {[%clk
0:00:20.8]} 72. Kf3 {[%clk 0:02:28.4]} 72... Nd6 {[%clk 0:00:20.7]} 73. g4
{[%clk 0:02:27.2]} 73... Ne8 {[%clk 0:00:21.7]} 74. Ke4 {[%clk 0:02:26.2]} 74...
Ng7 {[%clk 0:00:22.7]} 75. f5 {[%clk 0:02:24.8]} 75... Ne8 {[%clk 0:00:21.1]}
76. g5+ {[%clk 0:02:24.1]} 76... Ke7 {[%clk 0:00:18.1]} 77. Ng6+ {[%clk
0:02:22.6]} 77... Kf7 {[%clk 0:00:18.8]} 78. Ne5+ {[%clk 0:02:22.3]} 78... Kg7
{[%clk 0:00:19.6]} 79. f6+ {[%clk 0:02:22.5]} 79... Nxf6+ {[%clk 0:00:20.2]} 80.
gxf6+ {[%clk 0:02:22.7]} 80... Kxf6 {[%clk 0:00:22.1]} 81. Kf4 {[%clk
0:02:23.4]} 81... Kg7 {[%clk 0:00:22.9]} 82. Kg5 {[%clk 0:02:23.5]} 82... Kh7
{[%clk 0:00:23.6]} 83. Ng6 {[%clk 0:02:23.7]} 83... Kg7 {[%clk 0:00:24.3]} 84.
h5 {[%clk 0:02:20.9]} 84... Kh7 {[%clk 0:00:25.3]} 85. Nh4 {[%clk 0:02:20.3]}
85... Kg7 {[%clk 0:00:25.9]} 86. h6+ {[%clk 0:02:19.9]} 86... Kh7 {[%clk
0:00:26.8]} 87. Kh5 {[%clk 0:02:20.8]} 87... Kg8 {[%clk 0:00:26.5]} 88. Kg6
{[%clk 0:02:18.7]} 88... Kh8 {[%clk 0:00:27.1]} 89. Nf3 {[%clk 0:02:16.6]} 89...
Kg8 {[%clk 0:00:27.8]} 90. Ng5 {[%clk 0:02:17.3]} 90... Kh8 {[%clk 0:00:28.6]}
91. Kh5 {[%clk 0:02:17]} 91... Kg8 {[%clk 0:00:28.5]} 92. Kg6 {[%clk 0:02:18.1]}
92... Kh8 {[%clk 0:00:29.6]} 93. Nf7+ {[%clk 0:02:18.8]} 93... Kg8 {[%clk
0:00:30.9]} 94. h7+ {[%clk 0:02:19.5]} 94... Kf8 {[%clk 0:00:32.2]} 95. Nh6
{[%clk 0:02:18.6]} 95... Ke7 {[%clk 0:00:34.1]} 96. h8=Q {[%clk 0:02:19]} 96...
Kd6 {[%clk 0:00:34.9]} 97. Qe8 {[%clk 0:02:18.4]} 97... Kd5 {[%clk 0:00:35.6]}
98. Kf6 {[%clk 0:02:19.1]} 98... Kd4 {[%clk 0:00:37]} 99. Qe5+ {[%clk
0:02:18.8]} 99... Kd3 {[%clk 0:00:38.9]} 100. Qf4 {[%clk 0:02:18.4]} 100... Ke2
{[%clk 0:00:39.4]} 101. Qg3 {[%clk 0:02:18.7]} 101... Kd2 {[%clk 0:00:40.9]}
102. Ke5 {[%clk 0:02:19.4]} 102... Ke2 {[%clk 0:00:42]} 103. Ke4 {[%clk
0:02:20]} 103... Kd2 {[%clk 0:00:42.5]} 104. Kd4 {[%clk 0:02:20.9]} 104... Kc2
{[%clk 0:00:43.9]} 105. Kc4 {[%clk 0:02:22.2]} 105... Kb2 {[%clk 0:00:45.3]}
106. Kb4 {[%clk 0:02:22.1]} 106... Kc2 {[%clk 0:00:47.2]} 107. Qe3 {[%clk
0:02:21]} 107... Kd1 {[%clk 0:00:44.6]} 108. Qf2 {[%clk 0:02:21]} 108... Kc1
{[%clk 0:00:46.2]} 109. Kb3 {[%clk 0:02:21.1]} 109... Kd1 {[%clk 0:00:47.4]}
110. Qh2 {[%clk 0:02:21.8]} 110... Kc1 {[%clk 0:00:49.3]} 111. Kc3 {[%clk
0:02:22.7]} 111... Kd1 {[%clk 0:00:50.6]} 112. Qd2# {[%clk 0:02:23.2]} 1-0

[Event "Vener-dì-Lampo"]
[Site "Chess.com"]
[Date "2020.05.29"]
[Round "3"]
[White "markk000"]
[Black "Mrtre7"]
[Result "0-1"]
[WhiteElo "1559"]
[BlackElo "1463"]
[TimeControl "300+2"]
[EndTime "12:31:19 PDT"]
[Termination "Mrtre7 ha vinto per abbandono"]

1. d4 {[%clk 0:05:01.9]} 1... d5 {[%clk 0:05:00.6]} 2. c4 {[%clk 0:05:02.1]}
2... c6 {[%clk 0:05:00.4]} 3. Nc3 {[%clk 0:05:03.3]} 3... e6 {[%clk 0:05:01.2]}
4. e4 {[%clk 0:05:04.6]} 4... Ne7 {[%clk 0:04:59.1]} 5. Nf3 {[%clk 0:05:05]}
5... Ng6 {[%clk 0:04:33.2]} 6. Be2 {[%clk 0:04:49.9]} 6... dxc4 {[%clk
0:04:32.1]} 7. Bxc4 {[%clk 0:04:50.5]} 7... b5 {[%clk 0:04:26.2]} 8. Bb3 {[%clk
0:04:50.5]} 8... Bb7 {[%clk 0:04:25.6]} 9. O-O {[%clk 0:04:49.4]} 9... Nd7
{[%clk 0:04:26.6]} 10. Bg5 {[%clk 0:04:40.6]} 10... Be7 {[%clk 0:04:26.6]} 11.
Bxe7 {[%clk 0:04:33]} 11... Qxe7 {[%clk 0:04:26.8]} 12. e5 {[%clk 0:04:30.1]}
12... O-O {[%clk 0:04:25.9]} 13. Ne4 {[%clk 0:04:30.1]} 13... c5 {[%clk
0:04:19.3]} 14. Nd6 {[%clk 0:04:21.4]} 14... Bxf3 {[%clk 0:04:14.1]} 15. Qxf3
{[%clk 0:04:18.5]} 15... cxd4 {[%clk 0:04:13.5]} 16. Rfe1 {[%clk 0:04:09.5]}
16... Ndxe5 {[%clk 0:04:12.1]} 17. Nf5 {[%clk 0:03:49.3]} 17... Nxf3+ {[%clk
0:04:10.7]} 18. gxf3 {[%clk 0:03:49.9]} 18... Qg5+ {[%clk 0:04:01.3]} 19. Ng3
{[%clk 0:03:49.8]} 0-1

[Event "Vener-dì-Lampo"]
[Site "Chess.com"]
[Date "2020.05.29"]
[Round "3"]
[White "mr6701"]
[Black "fisherpez"]
[Result "1-0"]
[WhiteElo "1971"]
[BlackElo "1717"]
[TimeControl "300+2"]
[EndTime "12:34:56 PDT"]
[Termination "mr6701 ha vinto per scaccomatto"]

1. e4 {[%clk 0:05:01.9]} 1... e6 {[%clk 0:04:59.3]} 2. d4 {[%clk 0:05:03.4]}
2... b6 {[%clk 0:05:00.5]} 3. Nc3 {[%clk 0:05:04.5]} 3... Bb4 {[%clk 0:05:00.4]}
4. Bd3 {[%clk 0:05:03.5]} 4... Nf6 {[%clk 0:05:01.1]} 5. Nf3 {[%clk 0:05:02.1]}
5... Bb7 {[%clk 0:05:02.2]} 6. Qe2 {[%clk 0:05:03.7]} 6... Nc6 {[%clk
0:05:03.2]} 7. O-O {[%clk 0:05:03.3]} 7... Bxc3 {[%clk 0:05:04.2]} 8. bxc3
{[%clk 0:05:04]} 8... Na5 {[%clk 0:05:05.2]} 9. Bg5 {[%clk 0:05:02.8]} 9... h6
{[%clk 0:05:05.9]} 10. Bh4 {[%clk 0:05:03.4]} 10... g5 {[%clk 0:05:07.2]} 11.
Nxg5 {[%clk 0:05:02.6]} 11... hxg5 {[%clk 0:05:07.6]} 12. Bxg5 {[%clk
0:05:04.5]} 12... Rg8 {[%clk 0:05:08.8]} 13. f4 {[%clk 0:05:04.7]} 13... Rxg5
{[%clk 0:05:07.2]} 14. fxg5 {[%clk 0:05:04.5]} 14... Ng8 {[%clk 0:05:08]} 15.
Qh5 {[%clk 0:04:58.6]} 15... Qe7 {[%clk 0:05:08.4]} 16. g6 {[%clk 0:04:58]}
16... Nf6 {[%clk 0:05:00.6]} 17. Qh8+ {[%clk 0:04:44.7]} 17... Qf8 {[%clk
0:05:01.4]} 18. Qxf6 {[%clk 0:04:45.3]} 18... d6 {[%clk 0:04:43.2]} 19. gxf7+
{[%clk 0:04:45.6]} 19... Kd7 {[%clk 0:04:43.8]} 20. d5 {[%clk 0:04:35.5]} 20...
e5 {[%clk 0:03:56.9]} 21. Bb5+ {[%clk 0:04:22.2]} 21... c6 {[%clk 0:03:57.1]}
22. dxc6+ {[%clk 0:04:23.2]} 22... Bxc6 {[%clk 0:03:58.2]} 23. Qf5+ {[%clk
0:04:19.2]} 23... Kc7 {[%clk 0:03:58.3]} 24. Bxc6 {[%clk 0:04:15.1]} 24... Nxc6
{[%clk 0:03:58.5]} 25. Rad1 {[%clk 0:04:08.9]} 25... Rd8 {[%clk 0:03:58.1]} 26.
Rd3 {[%clk 0:04:00.3]} 26... Rd7 {[%clk 0:03:56.1]} 27. Rg3 {[%clk 0:03:59.1]}
27... Ne7 {[%clk 0:03:56.6]} 28. Qe6 {[%clk 0:03:53.5]} 28... a6 {[%clk
0:03:39.7]} 29. Rg8 {[%clk 0:03:48.3]} 29... Nxg8 {[%clk 0:03:39.4]} 30. fxg8=Q
{[%clk 0:03:49]} 30... Qxg8 {[%clk 0:03:29.8]} 31. Qxg8 {[%clk 0:03:49]} 31...
Kc6 {[%clk 0:03:31.3]} 32. Qd5+ {[%clk 0:03:44.9]} 32... Kc7 {[%clk 0:03:32.1]}
33. Rf8 {[%clk 0:03:42.2]} 33... Rd8 {[%clk 0:03:19.9]} 34. Rxd8 {[%clk
0:03:39.3]} 34... Kxd8 {[%clk 0:03:21.1]} 35. Qxd6+ {[%clk 0:03:40.4]} 35... Ke8
{[%clk 0:03:22.2]} 36. Qxe5+ {[%clk 0:03:38.6]} 36... Kd7 {[%clk 0:03:23.4]} 37.
Qd5+ {[%clk 0:03:36.1]} 37... Kc7 {[%clk 0:03:24.2]} 38. e5 {[%clk 0:03:35.6]}
38... b5 {[%clk 0:03:25.4]} 39. Qd6+ {[%clk 0:03:34.2]} 39... Kb7 {[%clk
0:03:26.7]} 40. e6 {[%clk 0:03:34.5]} 40... Ka7 {[%clk 0:03:27.5]} 41. g4 {[%clk
0:03:30.8]} 41... Kb7 {[%clk 0:03:27.1]} 42. h4 {[%clk 0:03:29.9]} 42... Ka7
{[%clk 0:03:27.9]} 43. g5 {[%clk 0:03:29.6]} 43... Kb7 {[%clk 0:03:29.3]} 44. h5
{[%clk 0:03:30.3]} 44... b4 {[%clk 0:03:30.8]} 45. cxb4 {[%clk 0:03:29.7]} 45...
a5 {[%clk 0:03:31.1]} 46. h6 {[%clk 0:03:27.8]} 46... axb4 {[%clk 0:03:30.8]}
47. Qxb4+ {[%clk 0:03:26.4]} 47... Kc6 {[%clk 0:03:31.9]} 48. h7 {[%clk
0:03:26.8]} 48... Kd5 {[%clk 0:03:32.2]} 49. h8=N {[%clk 0:03:23.8]} 49... Kxe6
{[%clk 0:03:33.6]} 50. a4 {[%clk 0:03:22.7]} 50... Kf5 {[%clk 0:03:35.1]} 51. a5
{[%clk 0:03:23]} 51... Ke6 {[%clk 0:03:36.3]} 52. a6 {[%clk 0:03:23.3]} 52...
Kf5 {[%clk 0:03:37.7]} 53. a7 {[%clk 0:03:23.6]} 53... Ke5 {[%clk 0:03:38.9]}
54. c4 {[%clk 0:03:22]} 54... Kd4 {[%clk 0:03:38.6]} 55. c5+ {[%clk 0:03:22.4]}
55... Ke3 {[%clk 0:03:39.9]} 56. c6 {[%clk 0:03:22.4]} 56... Kd3 {[%clk
0:03:41.4]} 57. c7 {[%clk 0:03:22.8]} 57... Ke3 {[%clk 0:03:42.9]} 58. Nf7
{[%clk 0:03:22.9]} 58... Kd3 {[%clk 0:03:44.6]} 59. c8=Q {[%clk 0:03:23.2]}
59... Ke3 {[%clk 0:03:46.2]} 60. Qe6+ {[%clk 0:03:23.7]} 60... Kd3 {[%clk
0:03:47.3]} 61. Qee4# {[%clk 0:03:23.3]} 1-0

[Event "Vener-dì-Lampo"]
[Site "Chess.com"]
[Date "2020.05.29"]
[Round "3"]
[White "sergiodone"]
[Black "pedrak"]
[Result "0-1"]
[WhiteElo "1526"]
[BlackElo "1992"]
[TimeControl "300+2"]
[EndTime "12:40:25 PDT"]
[Termination "pedrak ha vinto per tempo"]

1. e4 {[%clk 0:05:01.9]} 1... b6 {[%clk 0:04:55.7]} 2. d4 {[%clk 0:05:00.8]}
2... Bb7 {[%clk 0:04:56.2]} 3. Bd3 {[%clk 0:04:59.9]} 3... e6 {[%clk 0:04:56.8]}
4. c3 {[%clk 0:04:59.4]} 4... d6 {[%clk 0:04:57.5]} 5. Qe2 {[%clk 0:04:59.8]}
5... Nd7 {[%clk 0:04:57.4]} 6. Nf3 {[%clk 0:04:59.9]} 6... Ne7 {[%clk
0:04:56.9]} 7. h3 {[%clk 0:04:59.8]} 7... h6 {[%clk 0:04:57.4]} 8. a4 {[%clk
0:04:57.5]} 8... a6 {[%clk 0:04:57.4]} 9. Na3 {[%clk 0:04:57]} 9... g6 {[%clk
0:04:57.9]} 10. Nc2 {[%clk 0:04:57.3]} 10... Bg7 {[%clk 0:04:58.4]} 11. Bd2
{[%clk 0:04:57]} 11... O-O {[%clk 0:04:58.5]} 12. O-O {[%clk 0:04:56.6]} 12...
Nf6 {[%clk 0:04:53.1]} 13. Rab1 {[%clk 0:04:51.9]} 13... c5 {[%clk 0:04:40.9]}
14. a5 {[%clk 0:04:27.1]} 14... b5 {[%clk 0:04:34.1]} 15. e5 {[%clk 0:04:26.1]}
15... Nfd5 {[%clk 0:04:29.4]} 16. exd6 {[%clk 0:04:16.7]} 16... Qxd6 {[%clk
0:04:28.7]} 17. dxc5 {[%clk 0:04:05.5]} 17... Qxc5 {[%clk 0:04:26.6]} 18. Ncd4
{[%clk 0:04:05.4]} 18... Nc6 {[%clk 0:04:13]} 19. Nxc6 {[%clk 0:03:59.6]} 19...
Bxc6 {[%clk 0:04:08.1]} 20. Rbc1 {[%clk 0:03:48.8]} 20... Qd6 {[%clk 0:04:05.3]}
21. c4 {[%clk 0:03:38.5]} 21... Nf4 {[%clk 0:04:05.3]} 22. Bxf4 {[%clk
0:03:38.1]} 22... Qxf4 {[%clk 0:04:04.1]} 23. cxb5 {[%clk 0:03:34.3]} 23... Bxb5
{[%clk 0:04:04.8]} 24. Bxb5 {[%clk 0:03:34.6]} 24... axb5 {[%clk 0:04:05.5]} 25.
Rc2 {[%clk 0:03:28.9]} 25... b4 {[%clk 0:04:01.9]} 26. Qc4 {[%clk 0:03:17.5]}
26... Qxc4 {[%clk 0:03:59.1]} 27. Rxc4 {[%clk 0:03:17.4]} 27... Bxb2 {[%clk
0:03:52.8]} 28. Rxb4 {[%clk 0:03:17.2]} 28... Bc3 {[%clk 0:03:53]} 29. Rb5
{[%clk 0:03:12.8]} 29... Rxa5 {[%clk 0:03:52.7]} 30. Rb7 {[%clk 0:03:04.3]}
30... Bf6 {[%clk 0:03:37.8]} 31. Nh2 {[%clk 0:03:03.6]} 31... Be5 {[%clk
0:03:05.6]} 32. Ng4 {[%clk 0:03:03]} 32... Bg7 {[%clk 0:03:05.2]} 33. g3 {[%clk
0:03:00.4]} 33... h5 {[%clk 0:03:05.5]} 34. Ne3 {[%clk 0:02:45.3]} 34... Rd8
{[%clk 0:03:03.2]} 35. Kg2 {[%clk 0:02:45.3]} 35... Ra2 {[%clk 0:03:01.5]} 36.
Nc4 {[%clk 0:02:35.5]} 36... Rc2 {[%clk 0:02:51.1]} 37. Ne3 {[%clk 0:02:18.6]}
37... Re2 {[%clk 0:02:50.3]} 38. Nd1 {[%clk 0:02:17.8]} 38... Rdd2 {[%clk
0:02:47]} 39. h4 {[%clk 0:02:02.4]} 39... Bd4 {[%clk 0:02:44.9]} 40. Kf3 {[%clk
0:01:49.4]} 40... Kg7 {[%clk 0:02:27.9]} 41. Rd7 {[%clk 0:01:50]} 41... e5
{[%clk 0:02:24.2]} 42. Rd8 {[%clk 0:01:28.7]} 42... Ra2 {[%clk 0:02:19.9]} 43.
Rc8 {[%clk 0:01:19.7]} 43... Red2 {[%clk 0:02:19.2]} 44. Nc3 {[%clk 0:01:16.5]}
44... Ra3 {[%clk 0:02:15.6]} 45. Rc1 {[%clk 0:01:01.3]} 45... Rd3+ {[%clk
0:02:15.6]} 46. Ke4 {[%clk 0:00:53.2]} 46... Rdxc3 {[%clk 0:02:13.3]} 47. Rb1
{[%clk 0:00:49.4]} 47... Ra7 {[%clk 0:02:07.4]} 48. Rxc3 {[%clk 0:00:48.6]}
48... Bxc3 {[%clk 0:02:07.2]} 49. f4 {[%clk 0:00:47.4]} 49... exf4 {[%clk
0:02:06.9]} 50. gxf4 {[%clk 0:00:47.8]} 50... Bf6 {[%clk 0:02:04.6]} 51. Rd1
{[%clk 0:00:42.5]} 51... Bxh4 {[%clk 0:02:04.1]} 52. f5 {[%clk 0:00:43.4]} 52...
g5 {[%clk 0:01:58.4]} 53. Rd3 {[%clk 0:00:32.2]} 53... Bf2 {[%clk 0:01:51.5]}
54. Kf3 {[%clk 0:00:32.3]} 54... Be1 {[%clk 0:01:48.3]} 55. Rd6 {[%clk
0:00:30.2]} 55... g4+ {[%clk 0:01:45.2]} 56. Kf4 {[%clk 0:00:21.2]} 56... Bc3
{[%clk 0:01:42.3]} 57. Kg5 {[%clk 0:00:17.9]} 57... g3 {[%clk 0:01:38.4]} 58.
Kxh5 {[%clk 0:00:18.7]} 58... g2 {[%clk 0:01:35.5]} 59. Rd1 {[%clk 0:00:11]}
59... Ra1 {[%clk 0:01:35.1]} 0-1

[Event "Vener-dì-Lampo"]
[Site "Chess.com"]
[Date "2020.05.29"]
[Round "4"]
[White "Mrtre7"]
[Black "sergiodone"]
[Result "0-1"]
[WhiteElo "1456"]
[BlackElo "1533"]
[TimeControl "300+2"]
[EndTime "12:50:11 PDT"]
[Termination "sergiodone ha vinto per abbandono"]

1. d4 {[%clk 0:04:53.5]} 1... Nf6 {[%clk 0:04:58.8]} 2. c4 {[%clk 0:04:54]} 2...
c5 {[%clk 0:04:58.8]} 3. d5 {[%clk 0:04:51.6]} 3... b5 {[%clk 0:04:59.2]} 4.
cxb5 {[%clk 0:04:51.8]} 4... a6 {[%clk 0:04:59.4]} 5. b6 {[%clk 0:04:52]} 5...
Qxb6 {[%clk 0:04:58.8]} 6. Nc3 {[%clk 0:04:52.9]} 6... d6 {[%clk 0:04:59.3]} 7.
e4 {[%clk 0:04:53.7]} 7... Nbd7 {[%clk 0:04:59.2]} 8. Nf3 {[%clk 0:04:47.9]}
8... g6 {[%clk 0:04:59.3]} 9. Bd3 {[%clk 0:04:48.3]} 9... Bg7 {[%clk 0:04:59.9]}
10. O-O {[%clk 0:04:48.9]} 10... O-O {[%clk 0:05:00.4]} 11. Nd2 {[%clk
0:04:30.6]} 11... Qa7 {[%clk 0:05:00.7]} 12. Nc4 {[%clk 0:04:28.6]} 12... Nb6
{[%clk 0:04:57.8]} 13. f4 {[%clk 0:04:00]} 13... Nxc4 {[%clk 0:04:57.7]} 14.
Bxc4 {[%clk 0:03:59.4]} 14... Bd7 {[%clk 0:04:58.3]} 15. Kh1 {[%clk 0:03:41.2]}
15... Rab8 {[%clk 0:04:57.8]} 16. Re1 {[%clk 0:03:40.8]} 16... h5 {[%clk
0:04:50.5]} 17. e5 {[%clk 0:03:34.2]} 17... dxe5 {[%clk 0:04:50.5]} 18. fxe5
{[%clk 0:03:33.6]} 18... Ng4 {[%clk 0:04:46.4]} 19. Qf3 {[%clk 0:02:20.1]} 19...
Bxe5 {[%clk 0:04:34.1]} 20. Bf4 {[%clk 0:01:39.2]} 20... Qc7 {[%clk 0:04:19.5]}
21. g3 {[%clk 0:01:22.5]} 21... Bxf4 {[%clk 0:04:15]} 22. gxf4 {[%clk
0:01:21.4]} 22... Bb5 {[%clk 0:04:05.8]} 23. Bxb5 {[%clk 0:00:52.2]} 23... axb5
{[%clk 0:04:05.7]} 24. Rad1 {[%clk 0:00:48.1]} 24... Qd6 {[%clk 0:04:05.3]} 25.
Ne4 {[%clk 0:00:45.6]} 25... Qa6 {[%clk 0:03:59.9]} 26. Nxc5 {[%clk 0:00:45.9]}
26... Qa7 {[%clk 0:03:42.8]} 27. b4 {[%clk 0:00:39.6]} 27... Rbd8 {[%clk
0:03:33.4]} 28. f5 {[%clk 0:00:32.7]} 28... Qxa2 {[%clk 0:03:25.3]} 29. Re2
{[%clk 0:00:29.9]} 29... Qc4 {[%clk 0:03:22.2]} 30. Rde1 {[%clk 0:00:26.1]}
30... Rxd5 {[%clk 0:03:15.5]} 31. fxg6 {[%clk 0:00:22.6]} 31... fxg6 {[%clk
0:02:57.9]} 32. Qe3 {[%clk 0:00:23.5]} 32... Nxe3 {[%clk 0:02:56.7]} 33. Rxe3
{[%clk 0:00:24.2]} 33... Rf1+ {[%clk 0:02:55.3]} 34. Kg2 {[%clk 0:00:23.5]}
34... Rxe1 {[%clk 0:02:55]} 35. Rxe1 {[%clk 0:00:24.7]} 35... Qg4+ {[%clk
0:02:54.2]} 36. Kf1 {[%clk 0:00:24.5]} 36... Qf3+ {[%clk 0:02:52.4]} 37. Kg1
{[%clk 0:00:24.7]} 0-1

[Event "Vener-dì-Lampo"]
[Site "Chess.com"]
[Date "2020.05.29"]
[Round "4"]
[White "markk000"]
[Black "mr6701"]
[Result "1-0"]
[WhiteElo "1576"]
[BlackElo "1956"]
[TimeControl "300+2"]
[EndTime "12:51:47 PDT"]
[Termination "markk000 ha vinto per scaccomatto"]

1. d4 {[%clk 0:05:01.9]} 1... d5 {[%clk 0:05:00.9]} 2. c4 {[%clk 0:05:01.6]}
2... e6 {[%clk 0:05:02.2]} 3. Nc3 {[%clk 0:05:02.4]} 3... Nf6 {[%clk 0:05:03.4]}
4. Nf3 {[%clk 0:05:03.7]} 4... Be7 {[%clk 0:05:04.6]} 5. Bf4 {[%clk 0:05:04.4]}
5... O-O {[%clk 0:05:05.4]} 6. e3 {[%clk 0:05:05.1]} 6... b6 {[%clk 0:05:06.6]}
7. Be2 {[%clk 0:05:04.7]} 7... Bb7 {[%clk 0:05:06.7]} 8. O-O {[%clk 0:05:05]}
8... Nbd7 {[%clk 0:05:07.7]} 9. cxd5 {[%clk 0:05:06.2]} 9... Nxd5 {[%clk
0:05:07.9]} 10. Nxd5 {[%clk 0:05:05.1]} 10... Bxd5 {[%clk 0:05:07.2]} 11. Rc1
{[%clk 0:04:53.5]} 11... c5 {[%clk 0:05:07.8]} 12. b3 {[%clk 0:04:50.4]} 12...
Rc8 {[%clk 0:05:02.5]} 13. Ba6 {[%clk 0:04:47.2]} 13... Ra8 {[%clk 0:04:57.5]}
14. Re1 {[%clk 0:04:24.2]} 14... Nf6 {[%clk 0:04:47.3]} 15. Be5 {[%clk
0:04:10.2]} 15... Ng4 {[%clk 0:04:30.9]} 16. Bg3 {[%clk 0:04:05.4]} 16... Nf6
{[%clk 0:04:30.3]} 17. Ne5 {[%clk 0:03:48.2]} 17... Bd6 {[%clk 0:04:29.7]} 18.
dxc5 {[%clk 0:02:54.3]} 18... Bxc5 {[%clk 0:04:18.8]} 19. Nd3 {[%clk 0:02:48]}
19... Ba3 {[%clk 0:04:14.6]} 20. Rb1 {[%clk 0:02:00.4]} 20... Ne4 {[%clk
0:04:12.1]} 21. Be5 {[%clk 0:01:52.6]} 21... f6 {[%clk 0:04:12]} 22. Bb2 {[%clk
0:01:50.3]} 22... Bxb2 {[%clk 0:03:53]} 23. Rxb2 {[%clk 0:01:52.2]} 23... Nc5
{[%clk 0:03:39.5]} 24. Nxc5 {[%clk 0:01:52.7]} 24... bxc5 {[%clk 0:03:41.4]} 25.
Rc2 {[%clk 0:01:44.3]} 25... Qb6 {[%clk 0:03:41.9]} 26. Bc4 {[%clk 0:01:41.3]}
26... Rad8 {[%clk 0:03:43.1]} 27. Qe2 {[%clk 0:01:37.6]} 27... f5 {[%clk
0:03:34.2]} 28. Rd1 {[%clk 0:01:25.3]} 28... Rf6 {[%clk 0:03:25.6]} 29. Rdc1
{[%clk 0:01:11.4]} 29... Rc8 {[%clk 0:03:12.4]} 30. Rd1 {[%clk 0:01:02.8]} 30...
Be4 {[%clk 0:03:10.1]} 31. Rcd2 {[%clk 0:00:57.6]} 31... Rg6 {[%clk 0:03:09.9]}
32. f3 {[%clk 0:00:55.7]} 32... Bc6 {[%clk 0:03:09.5]} 33. Rd6 {[%clk
0:00:54.8]} 33... Re8 {[%clk 0:03:07.2]} 34. Qd3 {[%clk 0:00:35.9]} 34... Qb7
{[%clk 0:02:56.2]} 35. Qxf5 {[%clk 0:00:13.8]} 35... Bxf3 {[%clk 0:02:52.7]} 36.
Rd7 {[%clk 0:00:12.5]} 36... Rf8 {[%clk 0:01:42.1]} 37. Bxe6+ {[%clk 0:00:06.8]}
37... Kh8 {[%clk 0:01:37.8]} 38. Qxf8# {[%clk 0:00:06.7]} 1-0